bitfinex/quotes_SOLUSD_20260213
["timestamp","ask_amount","ask_price","bid_price","bid_amount"]
[1771014264224,2.416887,84.732,84.711,1.21812855]
[1771014265222,2.416887,84.729,84.704,1.22310171]
[1771014265439,2.416887,84.729,84.71,3.85949687]
[1771014266144,2.416887,84.738,84.711,1.22310171]
[1771014266635,2.6801926,84.73,84.71,3.85949687]
[1771014268032,2.6801926,84.73,84.705,1.22800818]
[1771014268341,2.6801926,84.73,84.71,3.85949687]
[1771014269724,0.2633056,84.73,84.711,1.24239485]
[1771014273835,2.92211312,84.73,84.711,1.24239485]
[1771014274044,0.2633056,84.73,84.711,1.26525026]
[1771014274850,2.92211312,84.73,84.711,1.26525026]
[1771014275635,2.92211312,84.73,84.71,3.85949687]
[1771014276448,2.92211312,84.73,84.711,1.27834253]
[1771014276655,0.2633056,84.73,84.711,1.27834253]
[1771014276858,0.1,84.74,84.722,1.01503693]
[1771014277029,0.1,84.74,84.72,3.85949687]
[1771014277030,0.2,84.75,84.731,0.91503693]
[1771014278139,2.66095194,84.757,84.74,3.85949687]
[1771014278447,2.66095194,84.763,84.741,0.72845256]
[1771014278837,2.66095194,84.763,84.75,3.85949687]
[1771014280026,2.66095194,84.759,84.742,30.52]
[1771014280226,2.66095194,84.767,84.743,0.73743382]
[1771014280560,2.66095194,84.767,84.75,3.85949687]
[1771014281143,0.2,84.77,84.76,4.59693069]
[1771014281327,0.2,84.78,84.77,3.85949687]
[1771014281533,2.66095194,84.789,84.77,3.85949687]
[1771014281749,2.66095194,84.797,84.78,3.85949687]
[1771014281941,4.05949687,84.81,84.78,3.85949687]
[1771014281942,2.66095194,84.803,84.781,30.52]
[1771014282145,2.66095194,84.803,84.78,3.85949687]
[1771014282342,2.66095194,84.803,84.781,30.52]
[1771014282543,2.66095194,84.799,84.738,0.54633678]
[1771014282751,2.66095194,84.799,84.76,3.85949687]
[1771014282947,2.66095194,84.779,84.74,3.85949687]
[1771014283730,2.66095194,84.759,84.73,3.85949687]
[1771014285040,2.66095194,84.759,84.727,30.5]
[1771014286273,2.66095194,84.759,84.72,3.85949687]
[1771014286441,2.66095194,84.759,84.722,30.5]
[1771014286933,3.85949687,84.76,84.552,0.22]
[1771014286934,2.66095194,84.739,84.71,3.85949687]
[1771014287152,2.66095194,84.739,84.704,0.56390389]
[1771014287351,2.66095194,84.739,84.708,30.5]
[1771014289745,2.66095194,84.719,84.684,0.57662244]
[1771014289942,2.66095194,84.709,84.68,30.5]
[1771014290154,3.85949687,84.7,84.671,30.5]
[1771014290353,2.66095194,84.699,84.671,30.5]
[1771014291955,2.66095194,84.699,84.672,2.63955233]
[1771014293441,2.66095194,84.699,84.671,30.5]
[1771014293874,2.66095194,84.699,84.672,2.63955233]
[1771014295760,2.66095194,84.699,84.671,30.5]
[1771014296075,2.66095194,84.699,84.669,30.52]
[1771014296250,2.66095194,84.699,84.67,3.85949687]
[1771014296451,2.66095194,84.699,84.67,6.4990492]
[1771014298273,2.66095194,84.699,84.67,2.63955233]
[1771014299171,2.66095194,84.699,84.669,30.52]
[1771014299962,3.85949687,84.72,84.669,30.52]
[1771014299963,3.85949687,84.69,84.669,30.52]
[1771014300148,2.66095194,84.689,84.669,30.52]
[1771014300352,2.66095194,84.679,84.656,30.54]
[1771014300571,3.85949687,84.67,84.631,2.80247998]
[1771014300755,3.85949687,84.66,84.633,2.80247998]
[1771014301249,3.85949687,84.67,84.633,2.80247998]
[1771014302050,0.02289226,84.687,84.651,2.80247998]
[1771014302377,0.03413831,84.719,84.681,2.80247998]
[1771014303667,0.04522839,84.699,84.672,2.80247998]
[1771014311167,0.05325278,84.709,84.672,2.80247998]
[1771014311481,0.05325278,84.709,84.681,2.80247998]
[1771014312476,0.05325278,84.709,84.683,2.80247998]
[1771014313177,3.85949687,84.72,84.683,2.80247998]
[1771014313379,0.04535225,84.719,84.683,2.80247998]
[1771014313964,0.04535225,84.709,84.683,2.80247998]
[1771014315374,0.04277901,84.719,84.683,2.80247998]
[1771014316082,0.04277901,84.719,84.69,3.85949687]
[1771014316281,0.03772085,84.718,84.683,2.80247998]
[1771014317489,0.03772085,84.718,84.69,3.85949687]
[1771014317676,0.03772085,84.718,84.691,2.80247998]
[1771014321594,15.66104323,84.73,84.681,30.6]
[1771014321595,0.02557514,84.729,84.701,2.80247998]
[1771014322684,3.85883683,84.71,84.676,2.80247998]
[1771014322884,0.02322906,84.699,84.676,2.80247998]
[1771014323606,0.02322906,84.699,84.661,2.80247998]
[1771014325414,3.85883683,84.69,84.661,2.80247998]
[1771014325908,3.85883683,84.7,84.671,2.80247998]
[1771014326081,3.85883683,84.71,84.671,2.80247998]
[1771014326400,3.85883683,84.7,84.671,2.80247998]
[1771014326772,3.85883683,84.71,84.671,2.80247998]
[1771014328296,3.85883683,84.7,84.671,2.80247998]
[1771014329283,3.85883683,84.69,84.664,30.56]
[1771014329583,3.85883683,84.7,84.665,2.80247998]
[1771014331314,3.85883683,84.69,84.664,30.56]
[1771014331679,3.85883683,84.68,84.664,30.56]
[1771014331892,3.85883683,84.68,84.656,2.80247998]
[1771014332207,3.85883683,84.67,84.631,2.80247998]
[1771014332509,3.85883683,84.65,84.626,30.56]
[1771014332680,3.85883683,84.64,84.615,2.80247998]
[1771014333080,3.85883683,84.65,84.615,2.80247998]
[1771014334508,3.85883683,84.64,84.615,2.80247998]
[1771014334711,3.85883683,84.64,84.606,2.80247998]
[1771014334917,3.85883683,84.63,84.599,2.80247998]
[1771014335077,3.85883683,84.62,84.591,2.80247998]
[1771014335281,3.85883683,84.61,84.59,0.2]
[1771014336299,3.85883683,84.62,84.59,0.2]
[1771014336799,3.85883683,84.62,84.59,3.00247998]
[1771014337005,3.85883683,84.61,84.59,0.2]
[1771014337898,3.85883683,84.6,84.58,0.2]
[1771014338406,3.85883683,84.61,84.581,2.80247998]
[1771014338610,3.85883683,84.6,84.581,2.80247998]
[1771014339814,3.85883683,84.61,84.581,2.80247998]
[1771014340010,11.81572199,84.633,84.591,2.80247998]
[1771014340011,3.85883683,84.62,84.591,2.80247998]
[1771014341083,3.85883683,84.63,84.591,2.80247998]
[1771014341808,3.85883683,84.62,84.591,2.80247998]
[1771014342607,3.85883683,84.64,84.58,4.05883683]
[1771014342608,3.85883683,84.6,84.58,0.2]
[1771014343704,11.81767688,84.619,84.58,0.2]
[1771014343705,3.85883683,84.59,84.58,0.2]
[1771014344814,3.85883683,84.59,84.57,0.2]
[1771014346798,3.85883683,84.58,84.57,0.2]
[1771014347308,3.85883683,84.58,84.558,2.80247998]
[1771014347814,3.85883683,84.57,84.541,2.80247998]
[1771014349518,3.85883683,84.56,84.541,2.80247998]
[1771014349815,3.85883683,84.56,84.52,3.85883683]
[1771014349816,3.85883683,84.56,84.521,2.80247998]
[1771014350012,3.85883683,84.56,84.531,2.80247998]
[1771014351501,3.85883683,84.55,84.531,2.80247998]
[1771014351824,3.85883683,84.56,84.531,2.80247998]
[1771014352921,3.85883683,84.56,84.444,25.4]
[1771014352922,3.85883683,84.55,84.516,2.80247998]
[1771014353316,3.85883683,84.54,84.516,2.80247998]
[1771014353517,3.85883683,84.53,84.5,0.2]
[1771014353818,3.85883683,84.53,84.48,3.00247998]
[1771014353819,3.85883683,84.51,84.48,3.00247998]
[1771014354125,19.12,84.53,84.491,2.80247998]
[1771014354126,30.0,84.529,84.491,2.80247998]
[1771014354303,3.85883683,84.54,84.501,2.80247998]
[1771014354700,3.85883683,84.56,84.48,46.37595724]
[1771014354701,3.85883683,84.55,84.521,2.80247998]
[1771014357516,3.85883683,84.56,84.521,2.80247998]
[1771014358226,3.85883683,84.55,84.521,2.80247998]
[1771014358525,3.85883683,84.56,84.521,2.80247998]
[1771014358729,37.30436387,84.572,84.521,2.80247998]
[1771014358730,3.85883683,84.55,84.521,2.80247998]
[1771014359410,3.85883683,84.57,84.531,2.80247998]
[1771014359614,3.85883683,84.56,84.531,2.80247998]
[1771014360507,3.85883683,84.57,84.531,2.80247998]
[1771014361447,29.55124597,84.599,84.541,2.80247998]
[1771014361613,3.85883683,84.59,84.551,2.80247998]
[1771014362715,3.85883683,84.59,84.532,11.82983958]
[1771014362716,3.85883683,84.61,84.571,2.80247998]
[1771014363013,41.35649296,84.63,84.571,2.80247998]
[1771014363014,3.85883683,84.6,84.571,2.80247998]
[1771014364531,3.85883683,84.61,84.581,2.80247998]
[1771014364707,15.6764827,84.62,84.581,2.80247998]
[1771014365936,3.85883683,84.61,84.581,2.80247998]
[1771014366837,15.6764827,84.62,84.581,2.80247998]
[1771014367035,3.85883683,84.62,84.581,2.80247998]
[1771014368309,15.67502199,84.63,84.591,2.80247998]
[1771014369241,3.85883683,84.63,84.591,2.80247998]
[1771014370131,25.48,84.636,84.611,2.80247998]
[1771014370438,3.85883683,84.64,84.611,2.80247998]
[1771014371932,3.85883683,84.65,84.611,2.80247998]
[1771014373623,3.85883683,84.65,84.621,2.80247998]
[1771014374025,25.48,84.652,84.621,2.80247998]
[1771014374220,3.85883683,84.65,84.621,2.80247998]
[1771014374538,3.85883683,84.65,84.559,1.18260622]
[1771014374539,3.85883683,84.63,84.603,2.80247998]
[1771014374742,3.85883683,84.64,84.603,2.80247998]
[1771014375222,3.85883683,84.64,84.577,2.80247998]
[1771014375223,3.85883683,84.61,84.577,2.80247998]
[1771014375425,3.85883683,84.6,84.577,2.80247998]
[1771014375625,4.61729252,84.638,84.577,2.80247998]
[1771014375626,3.85883683,84.61,84.577,2.80247998]
[1771014375833,3.85883683,84.6,84.577,2.80247998]
[1771014377620,37.33835456,84.615,84.561,2.80247998]
[1771014377621,3.85883683,84.59,84.561,2.80247998]
[1771014377825,3.85883683,84.58,84.551,2.80247998]
[1771014378026,3.85883683,84.57,84.516,2.80247998]
[1771014378245,3.85883683,84.57,84.531,2.80247998]
[1771014378843,10.3733185,84.57,84.531,2.80247998]
[1771014379746,16.43804266,84.597,84.531,2.80247998]
[1771014379930,10.3733185,84.56,84.531,2.80247998]
[1771014380849,10.3733185,84.55,84.523,2.80247998]
[1771014381156,10.3779958,84.55,84.523,2.80247998]
[1771014382953,10.3779958,84.54,84.511,2.80247998]
[1771014383550,10.3779958,84.53,84.511,2.80247998]
[1771014383748,10.3779958,84.52,84.495,2.80247998]
[1771014389256,11.82718122,84.551,84.495,2.80247998]
[1771014389556,10.3779958,84.53,84.501,2.80247998]
[1771014389855,59.11521764,84.581,84.486,30.16]
[1771014389856,25.48,84.56,84.511,2.80247998]
[1771014390063,10.3779958,84.54,84.511,2.80247998]
[1771014391259,11.8252232,84.565,84.486,30.16]
[1771014391260,10.3779958,84.56,84.521,2.80247998]
[1771014391850,10.3779958,84.56,84.531,2.80247998]
[1771014392039,10.3779958,84.57,84.531,2.80247998]
[1771014393059,10.3779958,84.57,84.54,10.3779958]
[1771014393243,10.3779958,84.56,84.527,2.80247998]
[1771014394459,29.5604751,84.573,84.527,2.80247998]
[1771014394651,10.3779958,84.56,84.531,2.80247998]
[1771014396257,10.3779958,84.56,84.509,30.14]
[1771014396258,10.3779958,84.59,84.551,2.80247998]
[1771014397452,11.82186809,84.589,84.551,2.80247998]
[1771014397656,10.3779958,84.59,84.551,2.80247998]
[1771014398551,35.8379958,84.61,84.571,2.80247998]
[1771014398756,35.8379958,84.61,84.58,10.3779958]
[1771014398948,35.8379958,84.61,84.581,2.80247998]
[1771014398949,25.46,84.61,84.581,2.80247998]
[1771014399363,10.3779958,84.63,84.591,2.80247998]
[1771014399563,11.81494998,84.639,84.601,2.80247998]
[1771014399755,10.3779958,84.64,84.601,2.80247998]
[1771014400076,11.81361897,84.649,84.611,2.80247998]
[1771014400271,10.3779958,84.65,84.611,2.80247998]
[1771014401365,11.81348864,84.649,84.611,2.80247998]
[1771014402969,10.3779958,84.64,84.611,2.80247998]
[1771014403345,10.3779958,84.63,84.595,2.80247998]
[1771014404163,10.3779958,84.62,84.581,2.80247998]
[1771014405252,37.27628047,84.629,84.591,2.80247998]
[1771014405650,11.81628047,84.629,84.591,2.80247998]
[1771014406372,25.48,84.633,84.601,2.80247998]
[1771014407478,25.48,84.633,84.611,2.80247998]
[1771014408068,25.5,84.649,84.611,2.80247998]
[1771014408267,11.81239481,84.657,84.621,2.80247998]
[1771014408477,11.81239481,84.657,84.592,41.78137149]
[1771014408478,10.3779958,84.64,84.601,2.80247998]
[1771014408776,10.3779958,84.64,84.603,2.80247998]
[1771014408979,10.3779958,84.63,84.603,2.80247998]
[1771014409359,10.3779958,84.64,84.603,2.80247998]
[1771014410679,11.81488439,84.639,84.603,2.80247998]
[1771014413182,10.3779958,84.64,84.603,2.80247998]
[1771014416053,0.8864031,84.639,84.603,1.80247998]
[1771014416257,11.81502398,84.638,84.603,1.80247998]
[1771014416476,0.88565554,84.637,84.603,1.80247998]
[1771014420376,25.5,84.644,84.603,1.80247998]
[1771014420377,0.8827502,84.629,84.603,1.80247998]
[1771014421071,11.81530318,84.636,84.585,2.61510776]
[1771014421072,0.8820446,84.619,84.585,2.61510776]
[1771014422480,10.3779958,84.63,84.591,2.61510776]
[1771014422682,25.58,84.636,84.61,10.3779958]
[1771014422887,0.87931195,84.656,84.621,2.61510776]
[1771014423269,10.4779958,84.66,84.631,2.61510776]
[1771014423466,10.3779958,84.65,84.624,2.61510776]
[1771014423991,11.25596493,84.65,84.624,2.61510776]
[1771014424385,25.6,84.656,84.624,2.61510776]
[1771014426568,26.47403248,84.656,84.624,2.61510776]
[1771014426769,10.4779958,84.66,84.611,2.61510776]
[1771014426770,0.87403248,84.649,84.611,2.61510776]
[1771014427786,0.87275029,84.656,84.621,2.61510776]
[1771014428369,0.87148283,84.659,84.621,2.61510776]
[1771014428991,10.4779958,84.66,84.621,2.61510776]
[1771014429184,12.68357605,84.659,84.621,2.61510776]
[1771014429399,0.87022993,84.658,84.621,2.61510776]
[1771014430167,11.24698722,84.65,84.621,2.61510776]
[1771014430378,0.86899142,84.65,84.621,2.61510776]
[1771014430874,11.24698722,84.65,84.621,2.61510776]
[1771014431076,0.86899142,84.649,84.621,2.61510776]
[1771014431282,0.86776713,84.647,84.611,2.61510776]
[1771014431478,0.86776713,84.639,84.611,2.61510776]
[1771014431684,0.86776713,84.649,84.611,2.61510776]
[1771014432678,0.86655691,84.648,84.611,2.61510776]
[1771014433477,0.86536059,84.639,84.611,2.61510776]
[1771014434591,0.86536059,84.639,84.573,4.61729252]
[1771014434592,10.3779958,84.62,84.587,2.61510776]
[1771014435104,0.864178,84.621,84.601,2.61510776]
[1771014435600,0.864178,84.621,84.581,2.61510776]
[1771014435601,22.19553302,84.62,84.581,2.61510776]
[1771014436688,0.86185343,84.619,84.581,2.61510776]
[1771014436882,10.3779958,84.6,84.581,2.61510776]
[1771014437279,0.86185343,84.609,84.581,2.61510776]
[1771014437478,0.86071113,84.599,84.571,2.61510776]
[1771014439104,0.85958195,84.579,84.55,29.88]
[1771014439413,0.85958195,84.579,84.54,10.3779958]
[1771014439414,0.85958195,84.579,84.549,2.61510776]
[1771014441098,0.85958195,84.579,84.55,10.3696893]
[1771014441301,0.85627164,84.589,84.551,2.61510776]
[1771014441486,11.22596094,84.58,84.551,2.61510776]
[1771014442503,10.3696893,84.59,84.551,2.61510776]
[1771014444495,0.85307409,84.589,84.551,2.61510776]
[1771014447204,11.22069243,84.58,84.551,2.61510776]
[1771014447510,25.78,84.595,84.551,2.61510776]
[1771014447511,0.84998546,84.587,84.551,2.61510776]
[1771014450206,0.84798505,84.585,84.551,2.61510776]
[1771014450407,11.82228737,84.586,84.551,2.61510776]
[1771014450408,10.3696893,84.57,84.551,2.61510776]
[1771014450608,0.84700204,84.569,84.534,2.61510776]
[1771014450786,10.3696893,84.55,84.534,2.61510776]
[1771014451187,10.3696893,84.55,84.527,2.64188805]
[1771014451188,11.21571962,84.55,84.527,2.64188805]
[1771014451392,0.84506977,84.549,84.512,2.64188805]
[1771014451612,0.84506977,84.572,84.512,2.64188805]
[1771014451819,0.84506977,84.572,84.511,29.84]
[1771014451820,10.3696893,84.56,84.521,2.64188805]
[1771014452016,25.82,84.573,84.521,2.64188805]
[1771014452017,10.3696893,84.55,84.521,2.64188805]
[1771014454127,0.84506977,84.559,84.521,2.64188805]
[1771014454426,10.3696893,84.55,84.521,2.64188805]
[1771014455211,0.84506977,84.559,84.521,2.64188805]
[1771014456995,0.84042997,84.539,84.512,2.64188805]
[1771014457199,0.84042997,84.539,84.506,2.64188805]
[1771014457720,0.83864781,84.529,84.505,29.84]
[1771014458214,0.83864781,84.529,84.473,4.61729252]
[1771014458215,10.3696893,84.52,84.487,2.45848146]
[1771014458516,10.3696893,84.51,84.487,2.45848146]
[1771014460500,11.20573989,84.51,84.487,2.45848146]
[1771014460738,10.3696893,84.51,84.487,2.45848146]
[1771014462212,0.83520466,84.509,84.481,2.45848146]
[1771014462413,10.3696893,84.5,84.481,2.45848146]
[1771014462614,0.83520466,84.509,84.481,2.45848146]
[1771014463120,10.3696893,84.52,84.481,2.45848146]
[1771014463623,0.83354184,84.519,84.481,2.45848146]
[1771014465026,3.87752621,84.51,84.481,2.45848146]
[1771014465332,4.70944321,84.5,84.48,0.2]
[1771014466105,0.831917,84.499,84.48,0.2]
[1771014466825,3.87752621,84.51,84.481,2.45848146]
[1771014467611,0.83032927,84.526,84.481,2.45848146]
[1771014467815,3.87752621,84.53,84.491,2.45848146]
[1771014468610,3.87752621,84.52,84.491,2.45848146]
[1771014470027,3.87752621,84.51,84.491,2.45848146]
[1771014470229,0.82801541,84.509,84.481,2.45848146]
[1771014471433,3.87752621,84.51,84.481,2.45848146]
[1771014472733,0.8265168,84.509,84.481,2.45848146]
[1771014473239,3.87752621,84.5,84.481,2.45848146]
[1771014473823,3.87752621,84.52,84.481,2.45848146]
[1771014474025,4.70330658,84.53,84.491,2.45848146]
[1771014474337,4.70257862,84.52,84.491,2.45848146]
[1771014474514,0.82505241,84.519,84.491,2.45848146]
[1771014474923,0.82505241,84.54,84.491,2.45848146]
[1771014475315,3.87752621,84.53,84.491,2.45848146]
[1771014475546,0.82433281,84.539,84.501,2.45848146]
[1771014475727,3.87752621,84.54,84.501,2.45848146]
[1771014476740,29.56265962,84.567,84.499,29.88]
[1771014476741,0.82362147,84.555,84.521,2.45848146]
[1771014477234,0.82362147,84.549,84.521,2.45848146]
[1771014477819,10.37649739,84.55,84.521,2.45848146]
[1771014478636,0.8229183,84.556,84.521,2.45848146]
[1771014478828,10.37649739,84.54,84.521,2.45848146]
[1771014479033,0.82222321,84.549,84.521,2.45848146]
[1771014479232,10.37649739,84.54,84.521,2.45848146]
[1771014479424,0.8215361,84.539,84.512,2.45848146]
[1771014480226,0.82085689,84.529,84.494,2.45848146]
[1771014481140,10.37649739,84.51,84.481,2.61042434]
[1771014481442,0.81952177,84.509,84.481,2.61042434]
[1771014482232,10.37649739,84.51,84.481,2.61042434]
[1771014482646,10.37649739,84.52,84.481,2.61042434]
[1771014482944,0.81886569,84.519,84.481,2.61042434]
[1771014484143,0.81886569,84.519,84.48,10.57649739]
[1771014484144,0.81821715,84.527,84.491,2.61042434]
[1771014484942,11.829566,84.534,84.491,2.61042434]
[1771014485243,11.829566,84.534,84.48,0.2]
[1771014485244,11.19343972,84.55,84.511,2.61042434]
[1771014485424,0.81694233,84.549,84.511,2.61042434]
[1771014487146,10.37649739,84.54,84.511,2.61042434]
[1771014489944,0.81447936,84.549,84.511,2.61042434]
[1771014490153,37.60657146,84.556,84.521,2.61042434]
[1771014490154,0.81447936,84.556,84.521,2.61042434]
[1771014491550,10.37649739,84.56,84.521,2.61042434]
[1771014491551,0.81328991,84.554,84.521,2.61042434]
[1771014493833,11.82505397,84.567,84.463,48.54145362]
[1771014493834,0.81212763,84.569,84.531,2.61042434]
[1771014494135,25.78,84.575,84.531,2.61042434]
[1771014494136,0.81212763,84.559,84.531,2.61042434]
[1771014494330,0.81155648,84.549,84.512,2.61042434]
[1771014494524,0.81155648,84.549,84.52,10.37649739]
[1771014494748,0.81155648,84.549,84.521,2.61042434]
[1771014494947,0.81155648,84.549,84.514,2.61042434]
[1771014495139,10.37649739,84.54,84.514,2.61042434]
[1771014495450,0.81155648,84.539,84.514,2.61042434]
[1771014498950,0.80933673,84.549,84.514,2.61042434]
[1771014502351,0.80773796,84.548,84.514,2.61042434]
[1771014504262,25.82,84.557,84.521,2.61042434]
[1771014505249,0.80569065,84.556,84.521,2.61042434]
[1771014507559,3.87472781,84.56,84.521,2.61042434]
[1771014507936,0.80470193,84.569,84.521,2.61042434]
[1771014508636,25.84,84.575,84.531,2.61042434]
[1771014508833,29.54860771,84.607,84.541,2.61042434]
[1771014509056,0.80421607,84.593,84.551,2.61042434]
[1771014509660,3.87472781,84.59,84.551,2.61042434]
[1771014510349,0.80326103,84.589,84.551,2.61042434]
[1771014510663,0.80326103,84.599,84.561,2.61042434]
[1771014510862,0.80279173,84.609,84.571,2.51067831]
[1771014511754,0.80232781,84.589,84.558,2.51067831]
[1771014512462,0.80232781,84.589,84.561,2.51067831]
[1771014512864,0.80186922,84.599,84.561,2.51067831]
[1771014514468,0.80096778,84.606,84.571,2.51067831]
[1771014514766,3.87472781,84.59,84.571,2.51067831]
[1771014514946,0.80096778,84.589,84.563,2.51067831]
[1771014517075,3.87472781,84.58,84.551,2.51067831]
[1771014517247,0.80008693,84.579,84.551,2.51067831]
[1771014517452,0.79922621,84.589,84.551,2.51067831]
[1771014517672,0.79922621,84.6,84.561,2.47423751]
[1771014517869,0.79922621,84.599,84.561,2.47423751]
[1771014519571,0.79838514,84.598,84.561,2.47423751]
[1771014521170,3.87472781,84.59,84.561,2.47423751]
[1771014521373,0.79797183,84.589,84.55,32.23423751]
[1771014521575,0.79756328,84.579,84.55,32.23423751]
[1771014521964,0.79756328,84.579,84.551,2.47423751]
[1771014525269,0.79756328,84.579,84.533,61.9]
[1771014525270,0.79636555,84.569,84.542,2.47423751]
[1771014525988,0.79597544,84.559,84.531,29.84]
[1771014526168,0.79597544,84.559,84.532,2.47423751]
[1771014527168,3.87472781,84.56,84.532,2.47423751]
[1771014527569,4.66993643,84.56,84.532,2.47423751]
[1771014528484,0.79520862,84.56,84.532,2.47423751]
[1771014528661,4.66993643,84.56,84.532,2.47423751]
[1771014529077,0.7948318,84.559,84.532,2.47423751]
[1771014531371,0.79372712,84.549,84.531,29.84]
[1771014531771,0.79372712,84.549,84.517,2.47423751]
[1771014532069,0.79372712,84.549,84.451,61.9]
[1771014532070,0.79372712,84.57,84.521,2.47423751]
[1771014532276,0.79372712,84.569,84.523,2.47423751]
[1771014532580,29.5567996,84.583,84.522,16.52]
[1771014532581,0.79336731,84.579,84.541,2.47423751]
[1771014532781,0.79336731,84.586,84.541,2.47423751]
[1771014532965,0.79336731,84.578,84.541,2.47423751]
[1771014535677,0.79231252,84.569,84.541,2.47423751]
[1771014536464,0.79231252,84.569,84.522,16.52]
[1771014536465,0.79196896,84.559,84.523,2.47423751]
[1771014540894,3.87472781,84.56,84.523,2.47423751]
[1771014541195,0.79030949,84.569,84.531,2.62596449]
[1771014541987,0.78998894,84.576,84.531,2.62596449]
[1771014542292,0.78998894,84.576,84.541,2.62596449]
[1771014548391,0.78784587,84.584,84.541,2.62596449]
[1771014548571,25.88,84.591,84.541,2.62596449]
[1771014548572,0.78784587,84.579,84.541,2.62596449]
[1771014550675,25.88,84.591,84.541,2.62596449]
[1771014550676,0.78726472,84.569,84.541,2.62596449]
[1771014553285,0.78669685,84.575,84.541,2.62596449]
[1771014554097,25.88,84.591,84.541,2.62596449]
[1771014554098,0.7864178,84.589,84.541,2.62596449]
[1771014554792,0.7864178,84.589,84.551,2.62596449]
[1771014555394,0.78586928,84.579,84.551,2.62596449]
[1771014572394,0.78586928,84.579,84.537,2.52876544]
[1771014572695,25.9,84.599,84.537,2.52876544]
[1771014572696,0.78146332,84.569,84.537,2.52876544]
[1771014574421,0.78102795,84.569,84.537,2.52876544]
[1771014576115,0.78081401,84.549,84.51,3.87131059]
[1771014576427,0.78060253,84.539,84.507,2.52876544]
[1771014579121,0.77998255,84.555,84.511,2.66088371]
[1771014579308,3.87131059,84.56,84.521,2.66088371]
[1771014579709,0.77978062,84.559,84.521,2.66088371]
[1771014579907,0.77978062,84.566,84.531,2.66088371]
[1771014580118,3.87131059,84.56,84.531,2.66088371]
[1771014581426,0.77938368,84.559,84.531,2.66088371]
[1771014583129,3.87131059,84.57,84.531,2.66088371]
[1771014583344,0.77918863,84.579,84.541,2.66088371]
[1771014584019,0.77899582,84.589,84.551,2.66088371]
[1771014584219,0.77899582,84.579,84.551,2.66088371]
[1771014585023,0.77880522,84.589,84.551,2.66088371]
[1771014587924,0.77824646,84.579,84.551,2.66088371]
[1771014590741,25.86,84.598,84.551,2.66088371]
[1771014590742,0.77770673,84.589,84.551,2.66088371]
[1771014590943,25.86,84.598,84.551,2.66088371]
[1771014590944,0.77770673,84.595,84.551,2.66088371]
[1771014591132,0.77770673,84.595,84.561,2.66088371]
[1771014591321,0.77753094,84.609,84.561,2.66088371]
[1771014592030,3.87131059,84.6,84.561,2.66088371]
[1771014592239,4.64884153,84.6,84.561,2.66088371]
[1771014592615,0.77735717,84.599,84.561,2.66088371]
[1771014594743,0.77701559,84.569,84.538,2.66088371]
[1771014594922,11.81998275,84.603,84.55,3.87131059]
[1771014595127,0.77701559,84.599,84.551,2.66088371]
[1771014595730,0.77701559,84.599,84.561,2.66088371]
[1771014597625,29.54470602,84.618,84.561,2.66088371]
[1771014597626,3.87131059,84.61,84.561,2.66088371]
[1771014597837,0.77651779,84.613,84.571,2.66088371]
[1771014598350,0.77635565,84.624,84.581,2.66088371]
[1771014598543,0.77635565,84.624,84.562,41.76564272]
[1771014598544,0.77635565,84.624,84.591,2.66088371]
[1771014598729,0.1,84.63,84.591,2.66088371]
[1771014598730,0.87635565,84.63,84.591,2.66088371]
[1771014599432,11.81628047,84.629,84.591,2.66088371]
[1771014599623,0.77619538,84.628,84.591,2.66088371]
[1771014600354,0.77603695,84.599,84.548,2.66088371]
[1771014600643,0.77603695,84.586,84.548,2.66088371]
[1771014600850,3.87131059,84.58,84.548,2.66088371]
[1771014601350,3.87131059,84.59,84.551,2.49013051]
[1771014601543,4.64703611,84.59,84.551,2.49013051]
[1771014601948,0.77572552,84.589,84.551,2.49013051]
[1771014602444,0.77557248,84.599,84.571,2.49013051]
[1771014602826,0.77557248,84.609,84.581,2.49013051]
[1771014603029,3.87131059,84.62,84.581,2.49013051]
[1771014603030,0.77557248,84.619,84.581,2.49013051]
[1771014603365,25.88,84.625,84.581,2.49013051]
[1771014603653,0.77542121,84.624,84.581,2.49013051]
[1771014604147,0.77542121,84.629,84.591,2.49013051]
[1771014604453,0.77527167,84.609,84.583,2.49013051]
[1771014604627,0.77527167,84.609,84.575,2.49013051]
[1771014605042,0.77527167,84.619,84.581,2.49013051]
[1771014605249,0.77512384,84.626,84.591,2.49013051]
[1771014605650,0.1,84.63,84.601,2.49013051]
[1771014605853,3.87131059,84.62,84.585,2.49013051]
[1771014606053,0.77512384,84.619,84.581,2.49013051]
[1771014608054,0.77483327,84.629,84.591,2.49013051]
[1771014608433,0.77469048,84.619,84.581,2.49013051]
[1771014610736,0.77440981,84.609,84.581,2.49013051]
[1771014611457,3.87131059,84.62,84.581,2.49013051]
[1771014611458,0.77427189,84.617,84.581,2.49013051]
[1771014614681,0.1,84.63,84.581,2.49013051]
[1771014614682,0.77386755,84.624,84.581,2.49013051]
[1771014614851,0.77386755,84.624,84.591,2.49013051]
[1771014615473,0.77373585,84.619,84.591,2.49013051]